{"text_format":"1","workbook":"xlsx","n_sheets":1,"sheets":["CATÁLOGO DOPI (2)"],"not_rendered":{"charts":0,"images":2,"macros":1,"external_links":2,"defined_names":135,"comments":0,"pivot_tables":0},"unopened":[],"bounds":{"document_bytes":16777216,"sheet_cells":100000,"rows_first":2000,"rows_last":500,"rows_between":2000,"halvings":0,"cell_chars":16384,"cell_head_chars":4096},"cells_cut":0,"cells_raw":0,"read":"whole","date_system":"1900"}

{"sheet":"CATÁLOGO DOPI (2)","index":0,"n_rows":161,"n_cols":8,"rows_kept":161,"cut":false,"hidden":false,"merged":[[11,7,12,7],[14,1,14,7],[17,0,17,7],[158,1,158,2],[159,1,160,4],[1,3,1,6],[2,3,5,6],[7,2,9,2],[10,3,10,6],[11,2,12,2],[11,3,12,6]]}
[]
[null,null,"MUNICIPIO DE ZAPOPAN, JALISCO","LICITACIÓN PÚBLICA No."]
[null,null,"DIRECCIÓN DE CONSERVACION DE INMUEBLES","DCI-MUN-RM-IM-LP-020-2024"]
[null,null,"UNIDAD DE PRESUPUESTOS Y CONTRATACION DE OBRA PUBLICA"]
[]
[]
[null,null,"DESCRIPCIÓN GENERAL DE LOS TRABAJOS:",null,null,"FECHA DE INICIO:","2024-12-15"]
[null,null,"Adecuación, mantenimiento y conservación a inmueble municipal, con trabajos de tablaroca, pintura vinílica y de esmalte en general, colocación de luminarias, sustitución de puertas de madera, así como trabajos complementarios, en el Centro Comunitario la Indígena ubicado en calle Francisco I. Madero no. 45, colonia Indígena San Juan de Ocotán, en el Municipio de Zapopan, Jalisco.",null,null,"FECHA DE TERMINACIÓN:","2025-06-30"]
[null,null,null,null,null,"PLAZO DE EJECUCIÓN:","198 días naturales"]
[null,null,null,null,null,"FECHA DE PRESENTACIÓN:","2024-12-03"]
[null,null,"RAZÓN SOCIAL DEL LICITANTE:","NOMBRE, CARGO Y FIRMA DEL LICITANTE",null,null,null,"DOCUMENTO"]
[null,null,null,null,null,null,null,"PE1"]
[]
[]
[null,"CATÁLOGO DE CONCEPTOS"]
[]
[null,"CLAVE","DESCRIPCIÓN ","UNIDAD","CANTIDAD","PRECIO UNITARIO ($)","PRECIO UNITARIO ($) CON LETRA","IMPORTE ($) M. N."]
[]
[null,"A","INMUEBLE MUNICIPAL",null,0]
[null,"A.1","DEMOLICIÓN"]
[null,"DOPI-001","DEMOLICION DE MURO A SOGA DE LADRILLO DE LAMA Y/O BLOCK CON APLANADO POR DOS LADOS,CON CASTILLOS Y DALAS DE DESPLANTE Y CORONA INCLUYE: ACARREO A LUGAR DE APILE, ANDAMIO, MANO DE OBRA Y HERRAMIENTA NECESARIOS PARA SU CORRECTA EJECUCION.","M2",8.68]
[null,"DOPI-002","APUNTALAMIENTO A BASE DE PIE DERECHO METALICO AJUSTABLE PARA UNA ALTURA MAXIMA DE 3.80 MTS. EN LOSA EXISTENTE. INCLUYE: LA RENTA DEL PUNTAL Y SU COLOCACION.","m2",8.68]
[null,"DOPI-003","DESMONTAJE DE  LUMINARIA EXISTENTE SIN RECUPERACIÓN, A UNA ALTURA DE HASTA 6 MTS. INCLUYE: ACARREO, DESCENSO Y RETIRO FUERA DE LA OBRA, EQUIPO, ANDAMIOS, MATERIALES, HERRAMIENTA Y MANO DE OBRA.","PZA",35]
[null,"DOPI-004","DESMONTAJE Y DESCONEXIÓN DE SALIDA ELECTRICA, CON TUBERIA DE DIAMETROS DE HASTA 1\", INCLUYE: RANURAS, RESANES, MATERIAL PARA CANCELACIÓN, ACARREOS DENTRO DE LA OBRA Y POSTERIORMENTE DONDE INDIQUE SUPERVISIÓN FUERA DE LA OBRA, MANO DE OBRA, EQUIPO Y HERRAMIENTA.","SAL",66]
[null,"DOPI-005","DESMONTAJE DE HERRERIA EN GENERAL EMPOTRADA O ANCLADA CON RECUPERACION, INCLUYE: DEMOLICION O RASPADO DE MORTERO O CONCRETO, ACOPIO DEL MATERIAL PARA SU RETIRO POSTERIOR, MANO DE OBRA Y ANDAMIOS.","M2",78.62]
[null,"DOPI-006","DESMONTAJE Y RETIRO DE IMPERMEABILIZANTE VIEJO DE MEMBRANA Y/O CARPETA EN AZOTEA, POR MEDIOS MANUALES Y/O MECANICOS, HASTA DESPRENDER LECHADA E IMPERMEABILIZACION PLASTICA, A CUALQUIER ALTURA Y/O NIVEL, INCLUYE: ACARREO Y APILE EN BANCO DE OBRA, LIMPIEZA GRUESA, MATERIALES, MANO DE OBRA, EQUIPO Y HERRAMIENTA.","M2 ",884.07]
[null,"DOPI-007","DEMOLICIÓN  DE LADRILLO DE AZOTEA Y MORTERO CON UN ESPESOR DE HASTA 5 CMS, INCLUYE: ACARREOS INTERNOS, MANO DE OBRA, EQUIPO, HERRAMIENTA Y APILE DEL MATERIAL DONDE INDIQUE SUPERVISIÓN.","M2",884.07]
[null,"DOPI-008","DESMONTAJE Y RETIRO A MANO DE MUROS DE TABLAROCA Y/O DUROCK, A UNA ALTURA DE HASTA 3.00 MTS, INCLUYE: ACARREO DEL MATERIAL A BANCO DE OBRA PARA SU POSTERIOR RETIRO, MANO DE OBRA, EQUIPO Y HERRAMIENTA.","M2",3.96]
[null,"DOPI-009","DEMOLICION Y RETIRO FUERA DE LA OBRA DE PISO CERAMICO EXISTENTE, INCLUYE: MANO DE OBRA, HERRAMIENTAS, EQUIPO, ACARREOS HASTA CAMION Y PREPARACIÓN DE SUPERFICIE PARA INSTALAR PISO PORCELANICO POSTERIORMENTE","M2",56.51]
[null,"DOPI-010","DESMONTAJE DE HERRERIA EN GENERAL EMPOTRADA O ANCLADA CON CRISTAL SIN RECUPERACION, INCLUYE: DEMOLICION O RASPADO DE MORTERO O CONCRETO, ACOPIO DEL MATERIAL PARA SU RETIRO POSTERIOR, MANO DE OBRA Y ANDAMIOS.","M2",38.25]
[null,"DOPI-011","DESMONTAJE DE HERRERIA DE ALUMINIO CON CRISTAL SIN RECUPERACION, INCLUYE: DEMOLICION O RASPADO DE MORTERO O CONCRETO, ACOPIO DEL MATERIAL PARA SU RETIRO POSTERIOR, MANO DE OBRA Y ANDAMIOS.","M2",38.25]
[null,"DOPI-012","DESMONTAJE DE HERRERIA EN GENERAL EMPOTRADA O ANCLADA SIN RECUPERACION, INCLUYE: DEMOLICION O RASPADO DE MORTERO O CONCRETO, ACOPIO DEL MATERIAL PARA SU RETIRO POSTERIOR, MANO DE OBRA Y ANDAMIOS.","M2",42.57]
[null,"DOPI-013","DEMOLICIÓN DE CONCRETO SIMPLE EN BANQUETAS, POR MEDIOS MECÁNICOS, INCLUYE: ACARREO DEL MATERIAL A BANCO DE OBRA PARA SU POSTERIOR RETIRO Y LIMPIEZA DEL ÁREA DE LOS TRABAJOS, MANO DE OBRA, EQUIPO Y HERRAMIENTA.","M3",1.34]
[null,"DOPI-014","DESMONTAJE DE HERRERIA EN GENERAL EMPOTRADA O ANCLADA CON RECUPERACION, INCLUYE: DEMOLICION O RASPADO DE MORTERO O CONCRETO, ACOPIO DEL MATERIAL PARA SU RETIRO POSTERIOR, MANO DE OBRA Y ANDAMIOS HASTA UNA ALTURA DE 6.00 M.","M2",67.95]
[null,"A.2","ALBAÑILERÍA"]
[null,"DOPI-015","TRAZO Y NIVELACIÓN CON EQUIPO TOPOGRÁFICO DEL TERRENO ESTABLECIENDO EJES Y REFERENCIAS Y BANCOS DE NIVEL, INCLUYE: CRUCETAS, ESTACAS, HILOS, MARCAS Y TRAZOS CON CALHIDRA, MANO DE OBRA, EQUIPO Y HERRAMIENTA.","M2",884.07]
[null,"DOPI-016","EXCAVACIÓN POR MEDIOS MANUALES DE 0.00 A -2.00 M, AUTORIZADA EN SITIO POR SUPERVISIÓN, EN MATERIAL TIPO II,  INCLUYE: RETIRO DEL MATERIAL A BANCO DE OBRA INDICADO POR SUPERVISIÓN, ABUNDAMIENTO, MANO DE OBRA, EQUIPO Y HERRAMIENTA.","M3",5.37]
[null,"DOPI-017","CIMENTACIÓN A BASE DE SUELO-CEMENTO, A BASE DE MATERIAL DE BANCO, EN PROPORCIÓN DE 1:10, COMPACTADO CON COMPACTADOR DE IMPACTO EN CAPAS NO MAYORES DE 20 CM AL 95% DE SU P.V.S.M, PRUEBA AASHTO ESTÁNDAR, INCLUYE: HERRAMIENTA, SUMINISTRO DE AGUA PARA LOGRAR HUMEDAD ÓPTIMA, MEZCLADO, TENDIDO, EQUIPO, PRUEBAS DE COMPACTACIÓN, EQUIPO Y MANO DE OBRA. (MEDIDO EN TERRENO NATURAL POR SECCIÓN SEGÚN PROYECTOS.) TRABAJOS EN ESPACIO REDUCIDO.","M3",1.78]
[null,"DOPI-018","DALA DE DESPLANTE DE  SECCIÓN 15X15 CM. CON CONCRETO F'C=150 KG./CM2  Y ARMEX 15 X 15 X 4 INCLUYE: CIMBRA,  DESCIMBRADO, MATERIALES , MANO DE OBRA, HERRAMIENTA Y EQUIPO.","M",20.9]
[null,"DOPI-019","DALA DE CORONA CON UNA SECCIÓN DE 20 X 20 CM DE CONCRETO F´C= 200 KG/CM2 HECHO EN OBRA,  ARMADO CON ARMEX 15 X 15 X 4, INCLUYE: HERRAMIENTA, CIMBRA COMÚN, COLADO, CURADO, VIBRADO, DESCIMBRA, DESPERDICIOS, ACARREOS, EQUIPO Y MANO DE OBRA.","M",20.9]
[null,"DOPI-020","MURO DE SOGA CON BOCK DE JALCRETO  11X14X28 CM. DE 14 CM. DE ESPESOR ASENTADO CON MORTERO CEMENTO ARENA PROP. 1:4. INCLUYE: SUMINISTRO Y ELABORACION, ACARREOS,  ANDAMIOS, EQUIPO, MATERIALES, HERRAMIENTA Y MANO DE OBRA.","M2",73.59]
[null,"DOPI-021","ANCLAJE DE CASTILLO CON CONCRETO F´C= 150 KG/CM2 HECHO EN OBRA CON UNA SECCIÓN DE 14X14X50 CM, ARMADO CON 4 VARILLAS DEL #4, ESTRIBOS DEL #3 @15 CM, INCLUYE: ARMADO, COLADO, CURADO, VIBRADO, CIMBRA COMÚN, DESCIMBRA, TRASLAPES, CRUCES DE VARILLAS CON ELEMENTOS TRANSVERSALES, DESPERDICIOS, ACARREOS, MANO DE OBRA Y HERRAMIENTA.","PZA",10]
[null,"DOPI-022","CASTILLO CON UNA SECCIÓN DE 15 X 15 CM DE CONCRETO F´C= 150 KG/CM2 HECHO EN OBRA, ARMADO CON ARMEX 15X15-4, INCLUYE: HERRAMIENTA, CIMBRA COMÚN, COLADO, CURADO, VIBRADO, DESCIMBRA, DESPERDICIOS, ACARREOS, EQUIPO Y MANO DE OBRA.","M",39.6]
[null,"DOPI-023","APLICACION DE ZARPEO EN MURO Y/O BOVEDAS, CON MORTERO CEMENTO-ARENA DE RIO PROPORCION 1:3, CUALQUIER ALTURA Y/O NIVEL, INCLUYE: ACARREOS, DESPERDICIOS, ANDAMIOS, PLOMEADO, NIVELADO, REGLEADO, RECORTES, MATERIALES, MANO DE OBRA, EQUIPO, HERRAMIENTA.","M2",147.18]
[null,"DOPI-024","APLANADO DE 2.50 CM DE ESPESOR EN MURO CON MORTERO CEMENTO-ARENA 1:3, ACABADO PULIDO O APALILLADO, INCLUYE: MATERIALES, ACARREOS, DESPERDICIOS, MANO DE OBRA, ANDAMIOS, PLOMEADO, NIVELADO, REGLEADO, RECORTES, MANO DE OBRA, EQUIPO Y HERRAMIENTA.","M2",147.18]
[null,"DOPI-025","BOQUILLA DE 15 A 20 CM DE ANCHO, CON MORTERO CAL - ARENA PROPORCIÓN 1:3, ACABADO REPELLADO, EN APERTURA DE VANOS DE PUERTAS Y VENTANAS, INCLUYE: HERRAMIENTA, PLOMEADO, NIVELADO, DESPERDICIOS, MATERIALES, EQUIPO Y MANO DE OBRA.","M",43.45]
[null,"DOPI-026","SUMINISTRO Y APLICACIÓN DE PASTA  EN MUROS INTERIORES Y/O EXTERIORES, CON ESTUCO BEXEL, ACABADO APALILLADO, INCLUYE: MATERIALES, HERRAMIENTA, MANO DE OBRA, EQUIPO, ACARREOS, NIVELADO, PLOMEADO, CORTES, DESPERDICIOS, ELEVACIÓN Y  ANDAMIOS.","M2 ",2427]
[null,"DOPI-027","SUMINISTRO E INSTALACIÓN DE LADRILLO DE AZOTEA CON MEDIDAS  DE 17 X 17 CMS ASENTADO CON MORTERO CEMENTO-ARENA 1:4, INCLUYE:  MATERIALES, ACARREOS, ELEVACIÓN, CORTES, DESPERDICIOS, TRASLAPES, MANO DE OBRA. EQUIPO Y HERRAMIENTA","M2",884.07]
[null,"DOPI-028","SUMINISTRO E INSTALACIÓN  DE ZAVALETA CON LADRILLO DE AZOTEA 17 X 17 CM,  ASENTADO CON MORTERO CEMENTO-ARENA 1:4, INCLUYE:  MATERIALES, ACARREOS, ELEVACIÓN, CORTES, DESPERDICIOS, TRASLAPES, MANO DE OBRA. EQUIPO Y HERRAMIENTA","M",128.69999999999999]
[null,"DOPI-029","LECHADA SOBRE LADRILLO DE AZOTEA CON SISTEMA A BASE DE POLVO MARMOLINA-CEMENTO BLANCO-SELLADOR EN PROPORCION DE 3:4:5. INCLUYE: PREPARACION DE LA SUPERFICIE, MATERIAL Y MANO DE OBRA.","M2",203.28]
[null,"DOPI-030","BARRA PARA COCINA DE 0.65 MTS. DE ANCHO Y 0.12 MTS. DE ESPESOR CON CONCRETO DE F'c=100 KG/CM2 ARMADA CON VARILLA DE 3/8\" A CADA 15 CM. AMBOS SENTIDOS, INCLUYE: SUMINISTRO Y ELABORACION, TRAZO, NIVELACION, CIMBRA, DESCIMBRA, MATERIAL Y MANO DE OBRA.","M",18.41]
[null,"DOPI-031","SUMINISTRO Y ELABORACION DE BANQUETON DE 0.60 M DE ANCHO X 0.10 M DE ESPESOR A BASE DE LADRILLO DE LAMA TIPO ADOBON 7 X 14 X 28 CM ASENTADO Y APLANADO CON MORTERO CEMENTO ARENA PROP. 1:4, INCLUYE: TRAZO, VIVELACION, MANO DE OBRA, HERRAMIENTA, DESPERDICIOS Y LIMPIEZA.","M",9.2100000000000009]
[null,"DOPI-032","BARRA PARA EMPOTRAR LAVABOS DE 0.60 MTS. DE ANCHO Y 0.10 MTS. DE ESPESOR CON CONCRETO DE F'c=150 KG/CM2 ARMADA CON VARILLA DE 3/8\" A CADA 15 CM. AMBOS SENTIDOS ACABADO CON AZULEJO MCA. INTERCERAMIC DE 20 X 20 CM, MODELO ASTRATTO BLANCO ANTIBACTERIAL PEGADO CON CEMENTO CREST O SIMILAR. INCLUYE: SUMINISTRO Y ELABORACION, TRAZO, NIVELACION, CIMBRA, DESCIMBRA, MATERIAL Y MANO DE OBRA.","M",6.42]
[null,"A.3","INSTALACIÓN ELÉCTRICA "]
[null,"DOPI-033","RANURA PARA ALOJAR TUBERIAS DE POLIDUCTO DE HASTA DE 2\" DE DIAMETRO DE 10 X 10 CM, EN MUROS Y/O BOVEDA, INCLUYE: CORTE CON DISCO, DEMOLICIÓN DE ENJARRE Y MURO DE FORMA MANUAL Y/O MECANICA, ACARREO, CORTES, RESANE CON MORTERO CEMENTO-ARENA PROPORCION 1:3, MATERIALES, MANO DE OBRA, EQUIPO Y HERRAMIENTA.","M",1123.22]
[null,"DOPI-034","SUMINISTRO Y COLOCACIÓN DE CENTRO DE CARGA QO4 NEMA 1 TIPO SOBREPONER, INCLUYE: MATERIALES, MANO DE OBRA Y HERRAMIENTA","PZA",1]
[null,"DOPI-035","SUMINISTRO E INSTALACIÓN DE CENTRO DE CARGA QO24,TRIFASICO DE SOBREPONER. INCLUYE: GABINETE, TAPA, HERRAMIENTA, ACCESORIOS Y TODO PARA SU CORRECTA COLOCACIÓN Y FUNCIONAMIENTO.","PZA",1]
[null,"DOPI-036","SUMINISTRO Y COLOCACIÓN DE INTERRUPTOR TERMOMAGNETICO DE 1X15-30 AMP. INCLUYE: MATERIAL, MANO DE OBRA Y HERRAMIENTA","PZA",32]
[null,"DOPI-037","SUMINISTRO Y COLOCACION DE TUBERIA POLIDUCTO DE DIAMETRO DE 1\", MARCA POLIFLEX O SIMILAR, INCLUYE: CORTES, CONEXIÓN, PRUEBAS, MATERIALES, MANO DE OBRA, EQUIPO Y HERRAMIENTA.","M",1123.22]
[null,"DOPI-038","SUMINISTRO E INSTALACIÓN DE CABLE MONOPOLAR DE COBRE AISLAMIENTO THHW, 600V, CAL. 12 AWG MARCA CONDUMEX O SIMILAR, INCLUYE: HERRAMIENTA, MATERIALES, CONEXIÓN,  PRUEBAS, EQUIPO Y MANO DE OBRA.","M",1123.22]
[null,"DOPI-039","SALIDA ELECTRICA PARA CONTACTO DUPLEX POLARIZADO Y/O APAGADOR SENCILLO, OCULTA, CON TUBERIA DE POLIDUCTO DE DIAMETRO DE HASTA 1\", CABLE VINANEL THW-LS 600 V. A 75° C, 90° C, MARCA CONDUCTORES MONTERREY O SIMILAR (VIAKON-PROTOCOLIZADO), CABLE VINANEL 21 THW-LS 600 V. A 75° C, 90° C, MARCA CONDUMEX (CONDUMEX PROTOCOLIZADO), CALIBRE 10 Y 12, CAJAS DE REGISTRO CUADRADAS, CHALUPAS Y TAPAS DE PVC REFORZADO, CONTACTO Y APAGADOR QUINZIÑO O SIMILAR, TAPA DE ALUMINIO, INCLUYE: HERRAMIENTA, TRAZO, RANURAS, CONEXIÓN A TIERRA, ACCESORIOS, MATERIALES MENORES Y DE CONSUMO, PRUEBAS, DESPERDICIOS Y ACARREO DEL MATERIAL AL SITIO DE SU COLOCACIÓN, A CUALQUIER NIVEL, EQUIPO Y MANO DE OBRA.","SAL",167]
[null,"DOPI-040","SALIDA ELECTRICA PARA MINISPLIT, OCULTA, CON TUBERIA DE POLIDUCTO DE DIAMETRO DE HASTA 1\", CABLE VINANEL THW-LS 600 V. A 75° C, 90° C, MARCA CONDUCTORES MONTERREY O SIMILAR (VIAKON-PROTOCOLIZADO), CABLE VINANEL 21 THW-LS 600 V. A 75° C, 90° C, MARCA CONDUMEX (CONDUMEX PROTOCOLIZADO), CALIBRE 10 Y 12, CAJAS DE REGISTRO CUADRADAS, CHALUPAS Y TAPAS DE PVC REFORZADO, CONTACTO Y APAGADOR QUINZIÑO O SIMILAR, TAPA DE ALUMINIO, INCLUYE: HERRAMIENTA, TRAZO, RANURAS, CONEXIÓN A TIERRA, ACCESORIOS, MATERIALES MENORES Y DE CONSUMO, PRUEBAS, DESPERDICIOS Y ACARREO DEL MATERIAL AL SITIO DE SU COLOCACIÓN, A CUALQUIER NIVEL, EQUIPO Y MANO DE OBRA.","SAL",24]
[null,"DOPI-041","SUMINISTRO Y COLOCACIÓN  DE LUMINARIA EMPOTRABLE LED, 42 W,4500 °K, 90-277 V, MONTAJE SOBREPUESTO EN LOSA A 3 M DE ALTURA, CUADRADA CON MEDIDAS APROXIMADAS DE 0.60 X 0.60 X 0.02 M.,  MODELO CF-9105-NI, MARCA ADESI O SIMILAR. INCLUYE: FLETES, ACARREO, ELEVACIONES, FIJACIÓN, CONEXIONES, PRUEBAS, MATERIALES, MANO DE OBRA, ANDAMIOS, ESCALERAS, EQUIPO Y HERRAMIENTA.","PZA ",61]
[null,"A.4","INSTALACIÓN HIDRO - SANITARIA. "]
[null,"DOPI-042","SALIDA SANITARIA A MUEBLE, CONSISTENTE EN TUBERÍA Y CONEXIONES DE PVC DE 2\" Y 4\" DE DIÁMETRO, HASTA 3 MTS DE LONGITUD, INCLUYE: DESPERDICIO DE TUBERÍA, LÍNEA DE VENTILACIÓN (DESFOGUE),  COPLES, CODOS, TEES, YEES, REDUCCIONES, REGISTRO SANITARIO, MATERIALES MENORES, FLETES Y ACARREO DE LOS MATERIALES AL SITIO DE SU INSTALACIÓN Y PRUEBAS.","SAL",12]
[null,"DOPI-043","SALIDA HIDRÁULICA DE AGUA FRÍA Y/O CALIENTE, PARA ALIMENTACIÓN A MUEBLE SANITARIO, CONSISTENTE EN TUBERÍA Y CONEXIONES DE CPVC DE 1/2\" A 2\" DE DIÁMETRO CON UN DESARROLLO DE HASTA 5.00 M,  INCLUYE: TRAZO, RANURAS, CÁMARAS CONTRA GOLPE DE ARIETE, CONEXIONES, (COPLES, CODOS, TAPONES, TEES, YEES, REDUCCIONES, ETC),  VÁLVULAS, TUERCAS UNIÓN EN CUADROS DE VÁLVULAS, MATERIALES MENORES Y DE CONSUMO, PEGAMENTOS, ELEMENTOS DE FIJACIÓN, DESPERDICIOS,  HERRAMIENTAS, LIMPIEZA, MANO DE OBRA, PRUEBAS HIDROSTÁTICAS, FLETES Y ACARREO DE LOS MATERIALES AL SITIO DE SU INSTALACIÓN.","SAL",12]
[null,"DOPI-044","SUMINISTRO Y COLOCACIÓN DE TUBO DE PVC SANITARIO DE 2\" DE DIÁMETRO, INCLUYE: ACARREOS, MATERIALES, MANO DE OBRA, EQUIPO Y HERRAMIENTA.","M",75.13]
[null,"DOPI-045","SUMINISTRO Y COLOCACION DE TUBERÍA DE CPVC DE 3/4\" DE DIAMETRO , INCLUYE: COPLES, PEGAMENTO, MATERIALES, MANO DE OBRA, EQUIPO Y HERRAMIENTA.","M",75.13]
[null,"DOPI-046","SUMINISTRO E INSTALACION DE DUCTO SEMI RÍGIDO FLEXIBLE DE 10.2 CM PLATA DEFLECTO, INCLUYE: TRAZO, RANURAS, RESANES, CONEXIONES, (COPLES, CODOS, ADAPTADORES, ETC.) MATERIALES MENORES DE CONSUMO, ELEMENTOS DE FIJACIÓN, DESPERDICIOS, HERRAMIENTA, MANO DE OBRA, FLETES, ACARREOS DE LOS MATERIALES AL SITIO DE SU INSTALACIÓN, ANDAMIOS Y/O ESCALERA.","M",22]
[null,"DOPI-047","SUMINISTRO E INSTALACIÓN DE PERSIANA DE VENTILACION PARA SECADORA DE 15.20 X 15.20 X 3.80 CM, COLOR BLANCO. INCLUYE: MATERIAL, HERRAMIENTA, MANO DE OBRA, Y LIMPIEZA.","PZA",8]
[null,"DOPI-048","SUMINISTRO E INSTALACIÓN DE TARJA EN COCINA 2 TINAS, DERECHA, DE EMPOTRAR, MEDIDAS DE 0.84 X 0.56 X 0.18 M DE ACERO INOXIDABLE CALIBRE 22, ACABADO SATINADO, CON LLAVE MEZCLADORA PARA COCINA, CROMADA MOD: SOPHIA, MCA. FLOWELL, INCLUYE: LLAVE ANGULAR, MANGUERA, CESPOL DE LATON MOD 4209, MATERIAL, HERRAMIENTA, MANO DE OBRA, ACARREO AL LUGAR DE SU INSTALACIÓN Y LIMPIEZA.","PZA",2]
[null,"DOPI-049","SUMINISTRO E INSTALACIÓN DE LAVABO DE SOBREPONER Y/O EMPOTRAR COLOR BLANCO, MODELO 52552022, MARCA DICA O SIMILAR. A CUALQUIER NIVEL. INCLUYE: ACARREO, PRUEBAS, LIMPIEZA, FIJACIÓN, MATERIALES, MANO DE OBRA Y EQUIPO.","PZA",1]
[null,"DOPI-050","SUMINISTRO Y COLOCACIÓN DE LLAVE MEZCLADORA DUOMANDO, MODELO NEMY, MARCA GLACIER BAY O SIMILAR, CROMO O SIMILAR. A CUALQUIER NIVEL. INCLUYE: MANGUERAS COFLEX, CONEXIONES, MATERIALES, MANO DE OBRA, EQUIPO Y HERRAMIENTA.","PZA",1]
[null,"DOPI-051","SUMINISTRO Y COLOCACIÓN DE DISPENSADOR DE JABÓN MARCA JOFEL, MOD. MINI JOFEL AC-84000-AU COLOR GRIS HUMO MEDIDAS 13.5 X 11.5 X 8.2 CM O SIMILAR. INCLUYE: MATERIALES, ACARREOS, HERRAMIENTA, HERRAJES DE FIJACIÓN Y MANO DE OBRA.","PZA",4]
[null,"DOPI-052","SUMINISTRO Y COLOCACIÓN DE DISPENSADOR DE TOALLA DE PAPEL POR PALANCA SMART, MARCA JOFEL, MOD. AG10000, COLOR TRANSPARENTE EN BASE GRIS O SIMILAR. INCLUYE: MATERIALES, MANO DE OBRA, HERRAJES DE FIJACIÓN Y HERRAMIENTA.","PZA",4]
[null,"DOPI-053","SUMINISTRO Y COLOCACIÓN DE LLAVE NARIZ, MODELO 18NC.13 URREA O SIMILAR. INCLUYE: MATERIAL, HERRAMIENTA Y MANO DE OBRA.","PZA",8]
[null,"A.5","INSTALACIÓN GAS"]
[null,"DOPI-054","SUMINISTRO E INSTALACIÓN DE TUBERÍA DE ACERO GALVANIZADO DE 1/2\" PARA LÍNEA DE GAS. INCLUYE: TRAZO, ANDAMIOS, MATERIAL, COPLE, PRUEBAS, HERRAMIENTA, MANO DE OBRA, ACARREOS Y LIMPIEZA.","M",82.5]
[null,"DOPI-055","RANURA PARA ALOJAR TUBERIAS DE 1/2\" CON SECCION DE 5 X 5 CM EN MUROS Y/O BOVEDA, INCLUYE: CORTE CON DISCO, DEMOLICIÓN DE ENJARRE Y MURO DE FORMA MANUAL Y/O MECANICA, ACARREO, CORTES, RESANE CON MORTERO CEMENTO-ARENA PROPORCION 1:3,","M",82.5]
[null,"DOPI-056","SUMINISTRO E INSTALACIÓN DE VALVÚLA DE CONTROL PARA NPT DE 1/2\" EN LINEA DE GAS. INCLUYE: MATERIALES, MANO DE OBRA Y HERRAMIENTA.","PZA",10]
[null,"DOPI-057","SUMINISTRO E INSTALACIÓN DE TANQUE ESTACIONARIO BLANCO DE 100 LITROS, MCA. TATSA, A CUALQUIER ALTURA Y/O NIVEL. INCLUYE: ACARREO AL LUGAR DE INSTALACIÓN, ELEVACIONES, VALVULAS, KIT DE INSTALACIÓN, MANO DE OBRA, PRUEBAS Y HERRAMIENTA.","PZA",1]
[null,"A.6","INSTALACIÓNES ESPECIALES"]
[null,"DOPI-058","SUMINISTRO E INSTALACIÓN DE TUBERÍA DE COBRE DE 1/2\". INCLUYE: TRAZO, ANDAMIOS, MATERIAL, COPLE, PRUEBAS, HERRAMIENTA, MANO DE OBRA, ACARREOS Y LIMPIEZA.","M",5.45]
[null,"DOPI-059","RANURA PARA ALOJAR TUBERIAS DE 1/2\" CON SECCION DE 5 X 5 CM EN MUROS Y/O BOVEDA, INCLUYE: CORTE CON DISCO, DEMOLICIÓN DE ENJARRE Y MURO DE FORMA MANUAL Y/O MECANICA, ACARREO, CORTES, RESANE CON MORTERO CEMENTO-ARENA PROPORCION 1:3,","M",5.45]
[null,"DOPI-060","SUMINISTRO E INSTALACIÓN DE VALVULA DE ESFERA DE 1/2\" PARA AIRE PRESION MAXIMA DE 200 PSI. INCLUYE: MATERIAL, HERRAMIENTA, MANO DE OBRA, ACARREOS Y LIMPIEZA.","PZA",3]
[null,"DOPI-061","SUMINISTRO E INSTALACION DE COMPRESOR DENTAL LIBRE DE ACEITE DE 1HP SILEN. IRON KRAN DE 50 LITROS, MONOFASICO DE 127 V, CAUDAL DE AIRE DE 150 LTS POR MINUTO, PRESION DE TRABAJJO DE 100 PSI, DISEÑO VERTICAL. MEDIDAS DE 48 X 48 X 80 CM. INCLUYE: MATERIALES, HERRAMIENTA, MANO DE OBRA, ACARREOS Y LIMPIEZA.","PZA",1]
[null,"A.7","INSTALACIÓN DE VOZ Y DATOS"]
[null,"DOPI-062","SUMINISTRO E INSTALACION DE GABINETE HIMEL VACIO DE 300 X 250 X 150 MM. INCLUYE: MATERIALES, HERRAMIENTA, MANO DE OBRA, ACARREOS Y LIMPIEZA.","PZA",1]
[null,"DOPI-063","SUMINISTRO E INTALACIÓN DE SWTCH LINKSYS GIGABIT ETHERNET MODELO LGS310C, 8 PUERTOS 10/100/1000 + 2 PUERTOS SFP, CAPACIDAD 20 GBIT/S, 8000 ENTRADAS - ADMINISTRABLE. PUERTOS RJ45,. INCLUYE: MATERIALES, HERRAMIENTA, MANO DE OBRA, ACARREOS Y LIMPIEZA.","PZA",1]
[null,"DOPI-064","SUMINISTRO, INSTALACION DE CABLE UTP CAT 6 AZUL COLOR AZUL MARCA PANDUIT SIMILAR INCLUYE: PATCH CORD, ACCESORIOS PARA REMATE EN RACK JACK CONEXIÓN DESDE EL SITE HASTA EL PUESTO DE TRABAJO, MATERIALES DE FIJACION, PASES DE MURO, PASES DE LOSA, APERTURA, Y REPARACION DE MUROS Y/O BOVEDA, MATERIALES, REGISTROS, MANO DE OBRA ESPECIALIZADA, ETIQUETADO, EQUIPO Y HERRAMIENTA.","M",80]
[null,"DOPI-065","SUMINISTRO Y COLOCACIÓN DE TUBERÍA CONDUIT 1/2\" PARED DELGADA. INCLUYE: FIJACIONES EN MURO, LOSA Y/O ESTRUCTURA CON ABRAZADERAS TIPO OMEGA A CADA 1.00 MT, ANDAMIOS, ACARREOS, CORTES, DESPERDICIOS, MATERIAL Y HERRAMIENTA.","M",80]
[null,"DOPI-066","SUMINISTRO, INSTALACION Y PUESTA EN MARCHA DE NODOS DOBLES DE RED, INCLUYE: CABLE UTP CATEGORIA 6 MARCA PANDUIT O SIMILAR COLOR AZUL HASTA 5M, PATCH CORD, ETIQUETADO, ACCESORIOS PARA REMATE EN RACK JACK CONEXIÓN DESDE EL SITE HASTA EL PUESTO DE TRABAJO, MATERIALES DE FIJACION, PASES DE MURO, PASES DE LOSA, APERTURA, Y REPARACION DE MUROS Y/O BOVEDA, MATERIALES, REGISTROS, MANO DE OBRA, EQUIPO Y HERRAMIENTA.","PZA",8]
[null,"A.8","VIDRIO Y ALUMINIO"]
[null,"DOPI-067","SUMINISTRO E INSTALACIÓN DE HERRERIA DE ALUMINIO CON ALUMINIO 3\" COLOR NEGRO, CON CRISTAL COLOR NATURAL DE 6MM. DISTINTAS MEDIDAS A CUALQUIER ALTURA Y/O NIVEL. INCLUYE: ANDAMIOS, ESCALERA, ACARREOS AL LUGAR DE INSTALACIÓN, ELEVACIONES, JALADERAS, BROCHE DE SEGURIDAD, SELLADO, MATERIAL, HERRAMIENTA Y MANO DE OBRA.","M2",99.05]
[null,"DOPI-068","SUMINISTRO E INSTALACION DE CRISTAL TEMPLADO DE 9 MM. PARA COLOCACION EN PUERTA DE HERRERIA. INCLUYE: ACARREOS AL LUGAR DE INSTALACIÓN, ELEVACIONES, SELLADO, MATERIAL, HERRAMIENTA Y MANO DE OBRA.","M2 ",10.89]
[null,"DOPI-069","SUMINISTRO E INSTALACIÓN DE PUERTA ABATIBLE DE CRISTAL TEMPLADO DE 9 MM MEDIDA DE 1.00 X 2.20 MTS. CON JALADERA TIPO H MCA HERRALUM DE 60 CM. DE ALUMINIO. INCLUYE: ACARREOS AL LUGAR DE INSTALACIÓN, ELEVACIONES, JALADERAS, BROCHE DE SEGURIDAD, SELLADO, MATERIAL, HERRAMIENTA Y MANO DE OBRA.","PZA",10]
[null,"A.9","TABLAROCA"]
[null,"DOPI-070","SUMINISTRO Y ELABORACIÓN DE MURO DE TABLAROCA A 2 CARAS A BASE DE HOJAS TIPO ESTANDAR O SIMILAR DE 13 MM DE ESPESOR, HASTA UNA ALTURA DE 3.00 M, CON BASTIDOR DE CANAL Y POSTE DE 6.35 CM DE ANCHO, CAL 26 @ 0.61 M., CALAFATEADO CON PERFACINTA Y COMPUESTO RESANADOR PLUS O SIMILAR EN LAS UNIONES, LIJADO Y PREPARADO PARA RECIBIR PINTURA. INCLUYE: ACARREOS, CORTES, ELEVACIÓN, ANDAMIOS, MANIOBRAS, DESPERDICIOS, ANCLAJE, FIJACIÓN, MATERIALES, MANO DE OBRA, EQUIPO Y HERRAMIENTA.","M2",48.05]
[null,"A.10","RECUBRIMIENTOS"]
[null,"DOPI-071","SUMINISTRO E INSTALACIÓN DE PISO PORCELÁNICO INTERCERAMIC EN FORMATO 60.8 X 60.8 CMS, ESTILO MARMOL COLOR GRIS. INCLUYE: ACARREO AL LUGAR DE INSTALACIÓN, CORTES, DESPERDICIOS, MATERIAL, PEGAPIZO, JUNTEADOR, HERRAMIENTA, MANO DE OBRA Y LIMPIEZA.","M2",96.09]
[null,"DOPI-072","SUMINISTRO E INSTALACIÓN DE ZOCLO DE PISO PORCELÁNICO INTERCERAMIC EN FORMATO 60.8 X 60.8 CMS, ESTILO MARMOL COLOR GRIS, DE 10 CM DE ALTURA. INCLUYE: ACARREO AL LUGAR DE INSTALACIÓN, CORTES, DESPERDICIOS, MATERIAL, PEGAPIZO, JUNTEADOR, HERRAMIENTA, MANO DE OBRA Y LIMPIEZA.","M",64.77]
[null,"DOPI-073","SUMINISTRO E INSTALACIÓN DE ZOCLO VINILICO COLOR NEGRO DE 7 CM DE ALTO. INCLUYE: HERRAMIENTA, ACARREOS, MATERIAL, MANO DE OBRA Y LIMPIEZA.","M2",275]
[null,"DOPI-074","SUMINISTRO Y COLOCACIÓN DE AZULEJO BLANCO VIZELADO ACABADO MATE MODELO MANHATAN, MARCA DUNE, MEDIDAS APROX DE 7.5 CM X 30 CM, INCLUYE: ACARREO AL LUGAR DE INSTALACIÓN, ANDAMIOS, ESCALERAS, CORTES, DESPERDICIOS, MATERIAL, PEGAPIZO, JUNTEADOR, HERRAMIENTA, MANO DE OBRA Y LIMPIEZA.","M2",10.24]
[null,"A.11","ACABADOS"]
[null,"DOPI-075","PREPARACIÓN DE LA SUPERFICIE, RESANE DE GRIETAS Y GOLPES EN MUROS Y/O BOVEDAS, RASPADO DE PINTURA EXISTENTE, HASTA DESPRENDER LA PINTURA VIEJA, A CUALQUIER ALTURA Y/O NIVEL. INCLUYE: ANDAMIOS, ACARREOS, LIMPIEZA GRUESA, MATERIALES, HERRAMIENTA Y MANO DE OBRA.","M2",2669.7]
[null,"DOPI-076","SUMINISTRO Y APLICACIÓN DE PINTURA VINÍLICA LÍNEA VINIMEX PREMIUM DE COMEX O SIMILAR A DOS MANOS PARA MURO Y BOVEDA, A CUALQUIER ALTURA Y/O NIVEL, EN CUALQUIER COLOR, PREPARANDO LA SUPERFICIE RASPANDO, RESANANDO, SELLANDO. INCLUYE: MATERIALES, ANDAMIOS, ACARREOS, MANO DE OBRA, EQUIPO, HERRAMIENTA Y LIMPIEZA.","M2",2669.7]
[null,"DOPI-077","ROTULACIÓN CON PINTURA VINILICA DE LEYENDA Y/O ESCUDO DEL MUNICIPIO DE ZAPOPAN, CON MEDIDAS DE HASTA 4.00 M DE LARGO X 2 DE ALTO, FORMATOS PROPORCIONADOS POR LA SUPERVISION DEL ÁREA. INCLUYE: PROTEGER EL ÁREA, TRAZO, ACARREOS, ANDAMIOS, MATERIALES, MANO DE OBRA, EQUIPO Y HERRAMIENTA.","PZA",2]
[null,"DOPI-078","SUMINISTRO Y APLICACIÓN A DOS MANOS DE IMPERMEABILIZANTE ACRITON 2 MANOS APLICANDO 1 MANO CON UN RENDIMIENTO DE 0.5 LT /M2 DEJANDO SECAR 24 HR Y APLICANDO UNA SEGUNADA CAPA CON EL MISMO RENDIMIENTO. INCLUYE: PREPARACIÓN DE LA SUPERFICIE, ACARREO DE MATERIAL, ELEVACIONES, GARANTÍA DE 6 AÑOS, MATERIAL, LIMPIEZA, HERRAMIENTA Y MANO.","M2 ",883.3]
[null,"A.12","HERRERÍA"]
[null,"DOPI-079","SUMINISTRO , HABILITADO Y COLOCACION DE HERRERIA ESTRUCTURAL PARA ESCALERAS, PUERTAS, VENTANAS, CANCELES Y PASAMANOS, INCLUYE: FLETES, ACARREOS, CORTES, DESPERDICIOS, SOLDADURAS, PINTURA ANTICORROSIVA ( PRIMER ), MATERIAL Y MANO DE OBRA","KG",1784.2]
[null,"A.13","CARPINTERÍA"]
[null,"DOPI-080","SUMINISTRO Y COLOCACIÓN DE PUERTA DE TAMBOR DE PINO, DE HASTA 1.10 M X 2.10 M, ACABADO CON LACA, INCLUYE: ACARREO, CORTES, SUMINISTRO, MARCO Y CHAMBRANAS DE TRIPLAY, CHAPA DE INTERCOMUNICACIÓN, BISAGRAS, MATERIALES, MANO DE OBRA, EQUIPO, HERRAMIENTA Y TODO LO NECESARIO PARA SU CORRECTA EJECUCION.","PZA",7]
[null,"DOPI-081","SUMINISTRO Y COLOCACIÓN DE REPISAS FABRICADAS CON BASTIDOR DE MADERA DE PINO, FORRADAS CON TRIPLAY DE MADERA DE PINO DE 3 MM, ACABADO CON LACA COLOR NOGAL. INCLUYE: ACARREO, CORTES, SUMINISTRO, INSTALACIÓN, MATERIALES, MANO DE OBRA, EQUIPO, HERRAMIENTA Y TODO LO NECESARIO PARA SU CORRECTA EJECUCION.","M2",33]
[null,"A.14","AIRE ACONDICIONADO"]
[null,"DOPI-082","SUMINISTRO E INSTALACION DE EQUIPO DE AIRE ACONDICIONADO TIPO MINISPLIT DE 2 T.R. SOLO FRIO MARCA MIRAGE V. 110, INCLUYE: TUBERIA, CONEXIONES, MANEOBRAS, ELEVACIONES, ACCESORIOS, ANDAMIOS, MATERIALES, EQUIPO, PASES EN LOSA O MURO, FIJACIONES, HERRAMIENTAS Y MANO DE OBRA.","PZA",16]
[null,"DOPI-083","SUMINISTRO DE EQUIPO DE AIRE ACONDICIONADO TIPO MINISPLIT DE 1 T.R. SOLO FRIO MARCA MIRAGE V.110, INCLUYE: TUBERIA, CONEXIONES, MANEOBRAS, ELEVACIONES, ACCESORIOS, ANDAMIOS, MATERIALES, EQUIPO, PASES EN LOSA O MURO,FIJACIONES, HERRAMIENTAS Y MANO DE OBRA.","PZA",8]
[null,"A.15","MOBILIARIO"]
[null,"DOPI-084","SUMINISTRO E INSTALACIÓN DE ESTACIÓN HORIZONTAL PARA CAMBIO DE PAÑALES DE BEBE MODELO FG781888LPLAT, FABRICADO EN POLIPROPILENO DE ALTA DENSIDAD DE 85.09 CM X 54.61 CM. INCLUYE: ACARREOS, MATERIALES DE FIJACION, ESCALERA, MANO DE OBRA, EQUIPO Y HERRAMIENTA.","PZA",1]
[null,"DOPI-085","SUMINISTRO E INSTALACIÓN DE CAMILLA CAMBIADOR CON CUBIERTA DE ESPUMA PU, CÓMODA Y FÁCIL DE LIMPIAR, MEDIDAS DE 1.70X0.63X0.63 M. INCLUYE: FLETE, ACARREOA, MATERIALES DE FIJACIÓN, HERRAMIENTA Y MANO DE OBRA.","PZA",1]
[null,"A.16","LIMPIEZA"]
[null,"DOPI-086","LIMPIEZA GRUESA DE OBRA, INCLUYE: ACARREO A BANCO DE OBRA, MANO DE OBRA, EQUIPO Y HERRAMIENTA.","M2",884.07]
[null,"DOPI-087","ACARREO EN CARRETILLA ESTACIONES SUBSECUENTES DE 50 MTS DE MATERIAL PRODUCTO DE LA EXCAVACION Y/O DEMOLICION. A CUALQUIER ALTURA Y/O NIVEL. INCLUYE: ACARREO A BANCO DE OBRA, APILE PARA SU RETIRO POSTERIOR, MANO DE OBRA, HERRAMIENTA Y EQUIPO.","M3",22]
[null,"DOPI-088","RETIRO DE ESCOMBRO, CARGA MECANICA, RETIRO DE CUALQUIER MATERIAL FUERA DE LA OBRA, CONSIDERANDO TIRO LIBRE, MEDIDO EN BANCO. INCLUYE: ACARREO, MANO DE OBRA, HERRAMIENTA, EQUIPO Y TODO LO NECESARIO PARA SU CORRECTA EJECUCIÓN.","M3",22]
[]
[]
[]
[]
[]
[]
[null,null,"RESUMEN DE PARTIDAS"]
[null,null,{"$f":"C8","v":"Adecuación, mantenimiento y conservación a inmueble municipal, con trabajos de tablaroca, pintura vinílica y de esmalte en general, colocación de luminarias, sustitución de puertas de madera, así como trabajos complementarios, en el Centro Comunitario la Indígena ubicado en calle Francisco I. Madero no. 45, colonia Indígena San Juan de Ocotán, en el Municipio de Zapopan, Jalisco."}]
[null,{"$f":"B13","v":0},{"$f":"C13","v":0}]
[null,"A",{"$f":"VLOOKUP(B133,$B$19:$H$123,2,FALSE)","v":"INMUEBLE MUNICIPAL"}]
[null,"A.1","DEMOLICIÓN"]
[null,"A.2","ALBAÑILERÍA"]
[null,"A.3","INSTALACIÓN ELÉCTRICA "]
[null,"A.4","INSTALACIÓN HIDRO - SANITARIA. "]
[null,"A.5","INSTALACIÓN GAS"]
[null,"A.6","INSTALACIÓNES ESPECIALES"]
[null,"A.7","INSTALACIÓN DE VOZ Y DATOS"]
[null,"A.8","VIDRIO Y ALUMINIO"]
[null,"A.9","TABLAROCA"]
[null,"A.10","RECUBRIMIENTOS"]
[null,"A.11","ACABADOS"]
[null,"A.12","HERRERÍA"]
[null,"A.13","CARPINTERÍA"]
[null,"A.14","AIRE ACONDICIONADO"]
[null,"A.15","MOBILIARIO"]
[null,"A.16","LIMPIEZA"]
[]
[]
[]
[]
[]
[]
[]
[]
[]
[null,"IMPORTE TOTAL CON LETRA",null,null,null,"SUBTOTAL M. N."]
[null,null,null,null,null,"IVA M. N."]
[null,null,null,null,null,"TOTAL M. N."]